bitfinex-derivatives/quotes_BNBF0:USTF0_20250521
["timestamp","ask_amount","ask_price","bid_price","bid_amount"]
[1747836350188,0.26516306,657.66,655.62,0.56652984]
[1747836350383,0.26516306,657.66,653.57,0.47875566]
[1747836350589,0.26516306,657.66,655.01,0.87138549]
[1747836350787,0.26516306,657.66,655.02,0.56656658]
[1747836350988,0.26516306,657.66,655.03,0.56656658]
[1747836351184,0.26516306,657.66,655.04,0.56656658]
[1747836351390,0.26516306,657.66,655.05,0.56656658]
[1747836351684,0.26516306,657.66,655.06,0.56656658]
[1747836351886,0.26516306,657.66,655.07,0.56656658]
[1747836352192,0.9880052,658.55,655.08,0.56656658]
[1747836352391,3.78229192,657.47,655.55,0.12687286]
[1747836352584,3.78229192,657.47,655.56,0.56670157]
[1747836353392,0.265157,657.46,655.56,0.56670157]
[1747836353691,0.265157,657.46,655.57,0.30481891]
[1747836353885,0.265157,657.46,655.58,0.56670157]
[1747836355094,3.78229192,657.47,655.59,0.30481891]
[1747836355293,3.78229192,657.47,655.6,0.56670157]
[1747836355494,3.78229192,657.47,655.59,0.30481891]
[1747836355495,3.78229192,657.47,655.61,0.56670157]
[1747836355694,3.78229192,657.47,655.62,0.56670157]
[1747836355991,3.78229192,657.47,655.63,0.56662459]
[1747836356188,3.78229192,657.47,655.64,0.56662459]
[1747836356393,0.2651671,657.46,655.36,0.16940303]
[1747836356694,0.2651671,657.46,655.37,0.87144396]
[1747836356894,0.2651671,657.46,655.38,0.5666502]
[1747836357294,0.2651671,657.46,655.39,0.5666502]
[1747836357496,0.2651671,657.46,655.4,0.5666502]
[1747836357694,0.2651671,657.46,655.41,0.5666502]
[1747836357895,0.2651671,657.46,655.42,0.5666502]
[1747836358094,3.78229192,657.47,655.43,0.5666502]
[1747836358390,0.26518731,657.45,655.44,0.5666502]
[1747836358596,0.26518731,657.45,655.55,0.12708726]
[1747836358898,0.26518731,657.45,655.56,0.5666502]
[1747836359695,0.26518731,657.45,655.57,0.87190004]
[1747836359896,0.26518731,657.45,655.58,0.56710628]
[1747836360993,3.78229192,657.47,655.58,0.56710628]
[1747836361191,3.78229192,657.47,655.59,0.30479376]
[1747836361397,0.26517114,657.44,655.6,0.56710628]
[1747836362499,0.26517114,657.44,655.61,0.30479376]
[1747836362700,0.26517114,657.44,655.62,0.56710628]
[1747836364105,3.78229192,657.47,655.62,0.56710628]
[1747836364303,3.78229192,657.48,655.7,0.12708726]
[1747836364502,3.78229192,657.48,655.71,0.56710628]
[1747836365003,3.78229192,657.48,655.72,0.56710628]
[1747836365204,3.78229192,657.48,655.73,0.56710628]
[1747836365405,0.26508227,657.47,655.74,0.56710628]
[1747836365605,0.26508227,657.47,655.75,0.56710628]
[1747836365799,0.26508227,657.47,655.76,0.87190004]
[1747836366002,0.26508227,657.47,655.77,0.56710628]
[1747836366202,0.26508227,657.47,655.78,0.56710628]
[1747836366405,0.26508227,657.47,655.79,0.56667467]
[1747836366605,0.26508227,657.47,655.8,0.56667467]
[1747836366903,0.26508227,657.47,655.81,0.56667467]
[1747836367103,3.78229192,657.48,655.82,0.56667467]
[1747836367403,3.78229192,657.48,655.83,0.56667467]
[1747836367603,3.78229192,657.75,655.9,0.12708726]
[1747836367806,3.78229192,657.75,655.91,0.56667467]
[1747836368005,3.78229192,657.75,655.92,0.56667467]
[1747836368202,3.78229192,657.75,655.93,0.56654703]
[1747836368408,0.26502877,657.74,655.94,0.56654703]
[1747836368609,0.26502877,657.74,655.95,0.56654703]
[1747836368810,0.26502877,657.74,655.96,0.56654703]
[1747836369011,0.26502877,657.74,655.97,0.56654703]
[1747836369204,0.26502877,657.74,655.98,0.56654703]
[1747836369405,0.26502877,657.74,655.99,0.56654703]
[1747836369607,0.26502877,657.74,656.0,0.56654703]
[1747836369809,0.26502877,657.74,655.95,0.30479376]
[1747836369810,0.26502877,657.74,656.01,0.56654703]
[1747836370005,3.78229192,657.75,656.02,0.56654703]
[1747836370205,3.78229192,657.93,656.03,0.56654703]
[1747836370409,3.78229192,657.93,656.04,0.56654703]
[1747836370608,3.78229192,657.93,656.05,0.56654703]
[1747836370809,3.78229192,657.93,656.06,0.56654703]
[1747836371010,3.78229192,657.93,656.07,0.56654703]
[1747836371206,3.78229192,657.93,656.01,0.30479376]
[1747836371207,0.26498134,657.92,656.08,0.56654703]
[1747836371406,0.26498134,657.92,656.01,0.30479376]
[1747836371610,0.26498134,657.92,656.09,0.30479376]
[1747836373115,3.78229192,657.93,656.1,0.30479376]
[1747836373414,0.26499244,657.91,656.11,0.56554548]
[1747836373607,0.26499244,657.91,656.12,0.56554548]
[1747836373809,0.26499244,657.91,656.13,0.56554548]
[1747836374012,0.26499244,657.91,656.14,0.87033924]
[1747836374210,0.26499244,657.91,656.15,0.56554548]
[1747836374509,0.26499244,657.91,656.14,0.30479376]
[1747836374713,0.26499244,657.91,656.15,0.56513005]
[1747836374914,0.26499244,657.91,656.16,0.56513005]
[1747836375116,0.26499244,657.91,656.14,0.30479376]
[1747836375315,0.26499244,657.91,656.15,0.56510538]
[1747836375512,0.26499244,657.91,656.14,0.30479376]
[1747836375715,0.26499244,657.91,656.15,0.56492503]
[1747836375917,0.26499244,657.91,656.14,0.30479376]
[1747836376117,3.78229192,657.93,656.15,0.56493498]
[1747836376319,3.78229192,657.93,656.14,0.30479376]
[1747836376513,3.78229192,657.93,656.15,0.56474749]
[1747836376714,3.78229192,657.93,656.16,0.56471081]
[1747836376916,3.78229192,657.93,656.17,0.56471081]
[1747836377113,3.78229192,657.93,656.18,0.56471081]
[1747836377317,3.78229192,657.93,656.19,0.56471081]
[1747836377518,0.26493192,657.92,656.2,0.56471081]
[1747836377718,0.26493192,657.92,656.21,0.56471081]
[1747836377921,0.26493192,657.92,656.22,0.56471081]
[1747836378122,0.26493192,657.92,656.23,0.56471081]
[1747836378322,0.26493192,657.92,656.24,0.56471081]
[1747836378525,0.26493192,657.92,656.25,0.56471081]
[1747836378718,0.26493192,657.92,656.26,0.56391788]
[1747836378918,0.26493192,657.92,656.27,0.56391788]
[1747836379125,0.26493192,657.92,656.28,0.56382413]
[1747836379423,0.26493192,657.92,656.29,0.56382413]
[1747836379617,0.26493192,657.92,656.3,0.56382413]
[1747836379822,0.26493192,657.92,656.31,0.56382413]
[1747836380022,0.26493192,657.92,656.32,0.56382413]
[1747836380222,0.26493192,657.92,656.33,0.56382413]
[1747836380424,0.26493192,657.92,656.34,0.56382413]
[1747836380624,0.26493192,657.92,656.35,0.56382413]
[1747836380825,0.26493192,657.92,656.36,0.56286307]
[1747836381024,0.26493192,657.92,656.14,0.30479376]
[1747836381220,0.26493192,657.92,656.15,0.56285145]
[1747836381423,0.26493192,657.92,656.16,0.56285145]
[1747836381624,0.26493192,657.92,656.17,0.56285145]
[1747836381826,0.26493192,657.92,656.18,0.56285145]
[1747836382124,0.26493192,657.92,656.19,0.56285145]
[1747836382326,0.26493192,657.92,656.2,0.56285145]
[1747836382524,0.26493192,657.92,656.38,0.12708726]
[1747836383928,0.26493192,657.92,656.39,0.30479376]
[1747836385321,0.26488756,657.91,656.39,0.30479376]
[1747836385526,0.26488756,657.91,656.4,0.30479376]
[1747836387027,0.26488756,657.91,656.41,0.30479376]
[1747836388126,3.78229192,658.29,656.41,0.30479376]
[1747836388629,3.78229192,658.29,656.08,0.12708726]
[1747836389232,0.26497227,658.28,656.08,0.12708726]
[1747836389731,0.26497227,658.28,656.09,0.30459477]
[1747836391132,3.78229192,658.29,656.09,0.30459477]
[1747836392234,3.78229192,658.29,656.1,0.30459477]
[1747836392434,0.26493898,658.28,656.1,0.30459477]
[1747836393536,0.26493898,658.28,656.11,0.30459477]
[1747836395131,0.26493898,658.28,656.12,0.30459477]
[1747836396438,0.26493898,658.28,656.13,0.30459477]
[1747836398129,0.26493898,658.28,656.14,0.30459477]
[1747836399036,0.26493898,658.28,656.15,0.30459477]
[1747836400541,0.98705288,658.09,656.15,0.30459477]
[1747836400865,0.98705288,658.09,656.16,0.30459477]
[1747836402239,0.98705288,658.09,656.17,0.30459477]
[1747836402635,0.26499547,658.08,656.17,0.30459477]
[1747836403135,0.98705288,658.09,656.17,0.30459477]
[1747836403435,0.26499547,658.07,656.17,0.30459477]
[1747836403834,0.26499547,658.07,656.18,0.30459477]
[1747836405235,0.26499547,658.07,656.19,0.30459477]
[1747836406037,3.78229192,658.33,656.19,0.30459477]
[1747836406337,0.26498134,658.06,656.19,0.30459477]
[1747836406637,3.78229192,658.33,656.19,0.30459477]
[1747836406836,3.78229192,658.33,656.2,0.30459477]
[1747836407538,0.26498336,658.32,656.2,0.30459477]
[1747836408241,0.26498336,658.32,655.98,0.30459477]
[1747836409040,3.78229192,658.33,655.98,0.30459477]
[1747836409445,0.26499143,658.32,655.98,0.30459477]
[1747836409842,0.26499143,658.32,655.99,0.30459477]
[1747836411344,0.26499143,658.32,656.0,0.30459477]
[1747836412146,3.78229192,658.33,656.0,0.30459477]
[1747836413148,3.78229192,657.95,656.03,0.12708726]
[1747836414446,3.78229192,657.95,656.04,0.30459477]
[1747836415549,3.78229192,657.95,656.05,0.30459477]
[1747836417249,3.78229192,657.95,656.06,0.30459477]
[1747836418649,3.78229192,657.95,656.07,0.30459477]
[1747836420151,3.78229192,657.95,656.08,0.30459477]
[1747836421353,0.26503785,657.94,656.08,0.30459477]
[1747836421751,0.26503785,657.94,656.09,0.30459477]
[1747836423051,0.26503785,657.94,656.1,0.30459477]
[1747836424552,0.26503785,657.94,656.11,0.30459477]
[1747836425854,0.26503785,657.94,655.93,0.30459477]
[1747836427056,3.78229192,657.95,655.93,0.30459477]
[1747836427360,0.26507015,657.93,655.93,0.30459477]
[1747836427657,3.78229192,657.67,655.77,0.30459477]
[1747836428759,3.78229192,657.67,655.78,0.30459477]
[1747836430559,0.26512569,657.66,655.78,0.30459477]
[1747836430759,0.26512569,657.66,655.79,0.30459477]
[1747836432063,0.26512569,657.66,655.8,0.30459477]
[1747836433159,3.78229192,657.67,655.81,0.30459477]
[1747836433360,0.26511357,657.65,655.81,0.30459477]
[1747836434762,0.26511357,657.65,655.82,0.30459477]
[1747836436063,3.78229192,657.67,655.83,0.56617455]
[1747836436357,3.78229192,657.62,655.84,0.99785658]
[1747836436560,3.78229192,657.62,655.85,0.56617455]
[1747836436756,3.78229192,657.62,655.86,0.56617455]
[1747836436959,3.78229192,657.62,655.87,0.56617455]
[1747836437156,3.78229192,657.62,655.88,0.56617455]
[1747836437356,0.26505804,657.61,655.84,0.43168203]
[1747836437559,0.26505804,657.61,655.85,0.56606606]
[1747836437760,0.26505804,657.61,655.86,0.56606606]
[1747836439063,3.78229192,657.62,655.86,0.56606606]
[1747836439364,3.78229192,657.62,655.87,0.30459477]
[1747836440165,0.26509034,657.61,655.87,0.30459477]
[1747836440659,0.26509034,657.61,655.88,0.30459477]
[1747836442266,3.78229192,657.62,655.89,0.56676067]
[1747836442468,3.78229192,657.62,655.9,0.56676067]
[1747836442666,0.26507217,657.6,655.91,0.56676067]
[1747836442861,0.26507217,657.6,655.92,0.56676067]
[1747836443062,0.26507217,657.6,655.93,0.69384793]
[1747836443261,0.26507217,657.6,655.94,0.56676067]
[1747836443961,0.26507217,657.6,655.95,0.30459477]
[1747836444167,0.26507217,657.6,655.96,0.56676067]
[1747836445465,0.26507217,657.6,655.97,0.30459477]
[1747836445666,0.26507217,657.6,655.98,0.56676067]
[1747836446668,0.26507217,657.6,655.99,0.30459477]
[1747836446868,0.26507217,657.6,656.0,0.56676067]
[1747836447064,0.26507217,657.6,655.99,0.30459477]
[1747836447261,0.26507217,657.6,656.0,0.56794159]
[1747836447464,0.26507217,657.6,656.01,0.56794501]
[1747836447662,0.26507217,657.6,655.99,0.30459477]
[1747836447864,0.26507217,657.6,656.0,0.56803152]
[1747836448068,0.26507217,657.6,656.01,0.56803152]
[1747836448263,3.78229192,657.62,655.99,0.30459477]
[1747836448465,3.78229192,657.62,656.0,0.56806804]
[1747836448667,0.26504189,657.59,656.01,0.87266281]
[1747836448867,0.26504189,657.59,656.02,0.56806804]
[1747836449067,0.26504189,657.59,656.01,0.30459477]
[1747836449269,0.26504189,657.59,656.02,0.56803703]
[1747836449469,0.26504189,657.59,656.01,0.30459477]
[1747836449670,0.26504189,657.59,656.02,0.56806073]
[1747836449864,0.26504189,657.59,656.03,0.30459477]
[1747836451264,0.26504189,657.59,656.04,0.56804659]
[1747836451471,0.26504189,657.59,656.03,0.30459477]
[1747836451768,3.78229192,657.58,656.04,0.8726471]
[1747836451962,3.78229192,657.58,656.04,0.30459477]
[1747836452369,3.78229192,657.58,656.05,0.56796937]
[1747836452570,3.78229192,657.58,656.04,0.30459477]
[1747836452871,3.78229192,657.58,656.05,0.56798488]
[1747836453072,3.78229192,657.58,656.06,0.56798488]
[1747836453269,3.78229192,657.58,656.04,0.30459477]
[1747836453270,3.78229192,657.58,656.07,0.56798488]
[1747836453466,3.78229192,657.58,656.08,0.87257965]
[1747836453665,3.78229192,657.58,656.09,0.56798488]
[1747836453864,3.78229192,657.58,656.08,0.30459477]
[1747836453865,3.78229192,657.58,656.1,0.56798488]
[1747836454068,3.78229192,657.58,656.11,0.56798488]
[1747836454269,3.78229192,657.58,656.12,0.56798488]
[1747836454471,0.26500051,657.57,656.13,0.56798488]
[1747836454667,0.26500051,657.57,656.14,0.56798488]
[1747836454875,0.26500051,657.57,656.12,0.30459477]
[1747836455774,0.26500051,657.57,656.13,0.30459477]
[1747836457078,3.78229192,657.75,656.13,0.30459477]
[1747836457378,0.26502776,657.56,656.13,0.30459477]
[1747836457679,3.78229192,657.75,656.13,0.30459477]
[1747836457978,3.78229192,657.75,656.14,0.30459477]
[1747836458478,0.26505299,657.74,656.14,0.30459477]
[1747836458979,0.26505299,657.74,656.15,0.30459477]
[1747836460277,3.78229192,657.75,656.15,0.30459477]
[1747836460477,0.26505905,657.73,656.15,0.30459477]
[1747836460678,0.26505905,657.73,655.98,0.30459477]
[1747836461982,0.26505905,657.73,655.99,0.30459477]
[1747836463084,3.78229192,657.75,655.99,0.30459477]
[1747836463385,0.2650651,657.72,655.99,0.30459477]
[1747836463884,0.2650651,657.72,656.0,0.30459477]
[1747836464184,0.2650651,657.72,656.01,0.56840147]
[1747836464377,0.2650651,657.72,656.0,0.30459477]
[1747836464583,0.2650651,657.72,656.01,0.56838582]
[1747836464782,0.2650651,657.72,656.0,0.30459477]
[1747836464985,0.2650651,657.72,656.01,0.8730207]
[1747836465184,0.2650651,657.72,656.02,0.56842593]
[1747836465379,0.2650651,657.72,656.03,0.56842593]
[1747836465685,0.2650651,657.72,656.01,0.30459477]
[1747836465886,0.2650651,657.72,656.02,0.56841942]
[1747836466085,3.78229192,657.75,656.03,0.56841942]
[1747836466285,3.78229192,657.75,656.04,0.56841942]
[1747836466485,3.78229192,657.75,656.05,0.56841942]
[1747836466486,0.26501161,657.71,656.05,0.56841942]
[1747836466685,0.26501161,657.71,656.06,0.56841942]
[1747836466886,0.26501161,657.71,656.07,0.56841942]
[1747836467086,0.26501161,657.71,656.08,0.56841942]
[1747836467387,0.26501161,657.71,656.09,0.56815129]
[1747836467588,0.26501161,657.71,656.1,0.56815129]
[1747836467887,0.26501161,657.71,656.11,0.56815129]
[1747836468189,0.26501161,657.71,656.12,0.56815129]
[1747836468486,0.26501161,657.71,656.13,0.56815129]
[1747836468687,0.26501161,657.71,656.14,0.56815129]
[1747836468888,0.26501161,657.71,656.12,0.30459477]
[1747836469188,3.78229192,657.75,656.13,0.5681027]
[1747836469383,3.78229192,657.75,656.14,0.5681027]
[1747836469592,3.78229192,657.75,656.12,0.30459477]
[1747836470290,3.78229192,657.48,656.13,0.30459477]
[1747836471491,3.78229192,657.48,656.14,0.30459477]
[1747836473094,3.78229192,657.48,656.07,0.30459477]
[1747836474194,3.78229192,657.48,655.92,0.30459477]
[1747836475597,0.26510953,657.47,655.93,0.87332009]
[1747836475896,0.26510953,657.47,655.94,0.56872532]
[1747836476096,0.26510953,657.47,655.93,0.30459477]
[1747836476298,0.26510953,657.47,655.94,0.56875354]
[1747836476497,0.26510953,657.47,655.95,0.30459477]
[1747836477599,0.26510953,657.47,655.96,0.30459477]
[1747836478095,3.78229192,657.48,655.96,0.30459477]
[1747836478401,0.26508025,657.46,655.96,0.30459477]
[1747836478801,0.26508025,657.46,655.97,0.30459477]
[1747836480001,0.26508025,657.46,655.98,0.30459477]
[1747836481204,3.78229192,657.48,655.98,0.30459477]
[1747836481605,0.26510044,657.45,655.98,0.30459477]
[1747836481801,0.26510044,657.45,655.99,0.30459477]
[1747836484007,0.26510044,657.45,655.88,0.30459477]
[1747836484206,3.78229192,657.23,655.88,0.30459477]
[1747836484607,3.78229192,657.23,655.89,0.56893153]
[1747836484805,3.78229192,657.23,655.88,0.30459477]
[1747836485000,3.78229192,657.23,655.89,0.30459477]
[1747836485508,0.26515599,657.22,655.89,0.30459477]
[1747836486309,0.26515599,657.22,655.9,0.30459477]
[1747836487212,3.78229192,657.23,655.9,0.30459477]
[1747836487613,3.78229192,657.23,655.71,0.30459477]
[1747836487813,3.78229192,657.23,655.72,0.56890201]
[1747836488012,3.78229192,657.23,655.73,0.56890201]
[1747836488213,3.78229192,657.23,655.74,0.56890201]
[1747836488413,0.26515397,657.22,655.75,0.56890201]
[1747836488614,0.26515397,657.22,655.76,0.56890201]
[1747836488807,0.26515397,657.22,655.71,0.30459477]
[1747836489009,0.26515397,657.22,655.77,0.30459477]
[1747836490315,3.78229192,657.23,655.77,0.30459477]
[1747836490716,3.78229192,657.23,655.68,0.30459477]
[1747836490917,0.26521156,657.22,655.68,0.30459477]
[1747836493115,0.26521156,657.22,655.69,0.30459477]
[1747836493418,3.78229192,657.23,655.69,0.30459477]
[1747836493619,0.2652055,657.21,655.69,0.30459477]
[1747836494419,0.2652055,657.21,655.57,0.30459477]
[1747836496026,0.2652055,657.21,655.58,0.30459477]
[1747836496219,3.78229192,657.23,655.58,0.30459477]
[1747836496412,0.26521762,657.2,655.58,0.30459477]
[1747836497320,0.26521762,657.2,655.59,0.30459477]
[1747836499522,3.78229192,657.03,655.6,0.30459477]
[1747836501022,3.78229192,657.03,655.61,0.30459477]
[1747836502420,0.26524087,657.02,655.61,0.30459477]
[1747836503125,0.26524087,657.02,655.62,0.30459477]
[1747836504023,0.26524087,657.02,655.63,0.30459477]
[1747836505623,0.26524087,657.02,655.54,0.30459477]
[1747836507723,0.26524087,657.02,655.55,0.30459477]
[1747836509629,0.26524087,657.02,655.27,0.30459477]
[1747836510631,0.26524087,657.02,655.28,0.30459477]
[1747836511234,3.78229192,657.03,655.28,0.30459477]
[1747836511530,0.26534907,657.01,655.28,0.30459477]
[1747836511934,0.26534907,657.01,655.29,0.30459477]
[1747836513137,0.26534907,657.01,655.3,0.30459477]
[1747836514130,3.78229192,657.03,655.3,0.30459477]
[1747836514638,0.26533693,657.02,655.3,0.30459477]
[1747836514841,0.26533693,657.02,655.31,0.30459477]
[1747836516437,0.26533693,657.02,655.32,0.30459477]
[1747836517841,0.26533693,657.02,655.33,0.30459477]
[1747836519141,0.26533693,657.02,655.34,0.30459477]
[1747836520244,3.78229192,657.38,655.35,0.30459477]
[1747836520543,0.26531974,657.01,655.35,0.30459477]
[1747836520845,3.78229192,657.38,655.35,0.30459477]
[1747836521645,0.26532176,657.37,655.35,0.30459477]
[1747836522346,0.26532176,657.37,655.36,0.30459477]
[1747836524347,0.26532176,657.37,655.37,0.30459477]
[1747836525649,0.26532176,657.37,655.38,0.30459477]
[1747836526149,3.78229192,657.38,655.38,0.30459477]
[1747836526551,0.26531771,657.36,655.38,0.30459477]
[1747836526746,0.26531771,657.36,655.39,0.30459477]
[1747836528252,0.26531771,657.36,655.4,0.30459477]
[1747836529352,3.78229192,657.38,655.4,0.30459477]
[1747836529653,0.2653339,657.35,655.4,0.30459477]
[1747836530452,0.2653339,657.35,655.2,0.30459477]
[1747836531451,0.2653339,657.35,655.21,0.30459477]
[1747836532153,3.78229192,657.5,655.21,0.30459477]
[1747836532453,0.26535413,657.34,655.21,0.30459477]
[1747836532752,3.78229192,657.5,655.21,0.30459477]
[1747836533156,3.78229192,657.5,655.22,0.30459477]
[1747836533756,0.26534907,657.49,655.22,0.30459477]
[1747836534754,0.26534907,657.49,655.23,0.30459477]
[1747836536057,0.26534907,657.49,655.24,0.30459477]
[1747836537759,0.26534907,657.49,655.25,0.30459477]
[1747836538258,3.78229192,657.5,655.25,0.30459477]
[1747836538559,0.26533794,657.48,655.25,0.30459477]
[1747836539858,0.26533794,657.48,655.26,0.30459477]
[1747836541360,0.98705288,657.38,655.26,0.30459477]
[1747836541558,0.98705288,657.38,655.27,0.30459477]
[1747836542961,3.78229192,657.21,655.27,0.30459477]
[1747836543152,3.78229192,657.21,655.28,0.30459477]
[1747836544459,3.78229192,657.21,655.29,0.56655984]
[1747836544662,0.26530153,657.2,655.3,0.56655984]
[1747836544861,0.26530153,657.2,655.31,0.87115461]
[1747836545057,0.26530153,657.2,655.32,0.56655984]
[1747836545258,0.26530153,657.2,655.33,0.56650808]
[1747836545460,0.26530153,657.2,655.31,0.30459477]
[1747836545657,0.26530153,657.2,655.32,0.56667664]
[1747836545862,0.26530153,657.2,655.33,0.56667664]
[1747836546063,0.26530153,657.2,655.31,0.30459477]
[1747836546262,0.26530153,657.2,655.32,0.56666126]
[1747836546462,0.26530153,657.2,655.31,0.30459477]
[1747836546760,0.26530153,657.2,655.33,0.30459477]
[1747836547261,3.78229192,657.51,655.33,0.30459477]
[1747836548163,3.78229192,657.51,655.34,0.30459477]
[1747836548468,0.26527221,657.5,655.34,0.30459477]
[1747836549171,0.26527221,657.5,655.35,0.30459477]
[1747836550471,0.26527221,657.5,655.36,0.30459477]
[1747836551871,0.26527221,657.5,655.37,0.30459477]
[1747836552373,0.26527221,657.5,655.38,0.56743159]
[1747836552576,0.26527221,657.5,655.39,0.56741927]
[1747836552772,0.26527221,657.5,655.37,0.30459477]
[1747836552973,0.26527221,657.5,655.38,0.56741105]
[1747836553167,3.78229192,657.51,655.37,0.30459477]
[1747836553368,3.78229192,657.51,655.38,0.56743452]
[1747836553568,3.78229192,657.51,655.39,0.56743452]
[1747836553977,3.78229192,657.51,655.4,0.56748989]
[1747836554167,3.78229192,657.51,655.41,0.56748989]
[1747836554368,3.78229192,657.51,655.42,0.56748989]
[1747836554573,0.26521156,657.5,655.43,0.56748989]
[1747836554775,0.26521156,657.5,655.44,0.56748989]
[1747836555076,3.78229192,657.14,655.45,0.56748989]
[1747836555373,3.78229192,657.14,655.46,0.56748989]
[1747836555574,3.78229192,657.14,655.47,0.56748989]
[1747836555775,3.78229192,657.14,655.44,0.30459477]
[1747836555976,3.78229192,657.14,655.45,0.56737212]
[1747836556277,3.78229192,657.14,655.46,0.56737212]
[1747836556478,0.2652439,657.13,655.47,0.56737212]
[1747836556679,0.2652439,657.13,655.46,0.30459477]
[1747836557876,0.2652439,657.13,655.47,0.30459477]
[1747836558678,0.2652439,657.13,655.48,0.30459477]
[1747836560180,0.2652439,657.13,655.39,0.30459477]
[1747836561873,0.2652439,657.13,655.4,0.30459477]
[1747836562179,3.78229192,657.14,655.4,0.30459477]
[1747836562783,0.26533896,657.13,655.4,0.30459477]
[1747836563878,0.26533896,657.13,655.25,0.30459477]
[1747836565186,3.78229192,657.14,655.25,0.30459477]
[1747836565387,3.78229192,657.14,655.26,0.30459477]
[1747836565685,0.26533794,657.13,655.26,0.30459477]
[1747836566385,0.26533794,657.13,655.27,0.87391573]
[1747836566585,0.26533794,657.13,655.27,0.30459477]
[1747836567988,0.26533794,657.13,655.28,0.30459477]
[1747836568188,3.78229192,657.14,655.28,0.30459477]
[1747836568588,0.26533289,657.12,655.28,0.30459477]
[1747836569790,3.78229192,656.68,655.29,0.30459477]
[1747836570990,3.78229192,656.68,655.3,0.30459477]
[1747836571585,0.26538954,656.67,655.3,0.30459477]
[1747836572389,0.26538954,656.67,655.31,0.30459477]
[1747836573488,0.26538954,656.67,655.32,0.30459477]
[1747836574285,3.78229192,656.68,655.32,0.30459477]
[1747836574690,0.26538853,656.67,655.32,0.30459477]
[1747836574892,0.26538853,656.67,655.33,0.30459477]
[1747836576291,0.26538853,656.67,655.34,0.30459477]
[1747836577390,0.26538853,656.67,655.35,0.30459477]
[1747836579196,0.26538853,656.67,655.1,0.30459477]
[1747836579497,0.26538853,656.67,655.11,0.56969493]
[1747836579696,0.26538853,656.67,655.12,0.56969493]
[1747836579898,0.26538853,656.67,655.13,0.56969493]
[1747836580196,3.78229192,656.68,655.14,0.56969493]
[1747836580391,3.78229192,656.68,655.15,0.56969493]
[1747836580594,0.26539359,656.66,655.16,0.56969493]
[1747836580793,0.26539359,656.66,655.17,0.56969493]
[1747836580995,0.26539359,656.66,655.15,0.30459477]
[1747836581192,0.26539359,656.66,655.16,0.56964085]
[1747836581396,0.26539359,656.66,655.15,0.30459477]
[1747836581692,0.26539359,656.66,655.16,0.56962781]
[1747836581898,0.26539359,656.66,655.15,0.30459477]
[1747836582097,0.26539359,656.66,655.17,0.30459477]
[1747836584105,0.26539359,656.66,655.18,0.30459477]
[1747836585106,0.26539359,656.66,655.05,0.30459477]
[1747836586205,3.78229192,656.7,655.05,0.30459477]
[1747836586507,3.78229192,656.7,654.9,0.30459477]
[1747836586707,0.26546445,656.65,654.91,0.56981911]
[1747836587006,0.26546445,656.65,654.92,0.56981911]
[1747836587208,0.26546445,656.65,654.93,0.56972299]
[1747836587404,0.26546445,656.65,654.94,0.56972299]
[1747836587602,0.26546445,656.65,654.95,0.56972299]
[1747836587804,0.26546445,656.65,654.96,0.56972299]
[1747836588004,0.26546445,656.65,654.97,0.56972299]
[1747836588200,0.26546445,656.65,654.98,0.87431776]
[1747836588404,0.26546445,656.65,654.99,0.56922807]
[1747836588605,0.26546445,656.65,655.0,0.56922807]
[1747836588806,0.26546445,656.65,655.01,0.56922807]
[1747836589005,0.26546445,656.65,655.02,0.56922807]
[1747836589208,3.78229192,656.7,655.03,0.56922807]
[1747836589409,3.78229192,656.7,655.04,0.56922807]
[1747836589707,3.78229192,656.7,655.05,0.56922807]
[1747836589904,3.78229192,656.7,655.05,0.30459477]
[1747836590105,3.78229192,656.7,655.06,0.56919773]
[1747836590410,3.78229192,656.7,655.05,0.30459477]
[1747836590609,0.26543914,656.69,655.06,0.56916091]
[1747836590810,0.26543914,656.69,655.05,0.30459477]
[1747836591011,0.26543914,656.69,655.06,0.87375869]
[1747836591210,0.26543914,656.69,655.06,0.30459477]
[1747836592211,3.78229192,656.7,655.06,0.30459477]
[1747836592511,3.78229192,656.7,655.07,0.30459477]
[1747836593512,0.26543711,656.69,655.07,0.30459477]
[1747836593912,0.26543711,656.69,655.08,0.30459477]
[1747836594113,0.26543711,656.69,655.09,0.56904641]
[1747836594311,0.26543711,656.69,655.1,0.56904641]
[1747836594611,0.26543711,656.69,655.11,0.56904641]
[1747836594810,0.26543711,656.69,655.12,0.56904641]
[1747836595110,0.26543711,656.69,655.13,0.56904641]
[1747836595412,3.78229192,656.7,655.08,0.30459477]
[1747836595605,3.78229192,656.7,655.09,0.56898276]
[1747836595807,3.78229192,656.7,655.13,0.30459477]
[1747836596311,3.78229192,656.7,655.14,0.56896531]
[1747836596512,0.26541586,656.69,655.15,0.56896531]
[1747836596717,0.26541586,656.69,655.15,0.30459477]
[1747836597905,0.26541586,656.69,655.16,0.56886633]
[1747836598110,0.26541586,656.69,655.17,0.56886633]
[1747836598310,3.78229192,656.7,655.18,0.56886633]
[1747836598511,3.78229192,656.73,655.19,0.56878648]
[1747836598811,3.78229192,656.73,655.2,0.56876964]
[1747836599108,3.78229192,656.73,655.21,0.56876964]
[1747836599308,0.26533896,656.72,655.22,0.56876964]
[1747836599611,0.26533896,656.72,655.23,0.56876964]
[1747836599909,0.26533896,656.72,655.24,0.56876964]
[1747836600112,0.26533896,656.72,655.25,0.87336441]